bitfinex/quotes_ETHUSD_20250605
["timestamp","ask_amount","ask_price","bid_price","bid_amount"]
[1749140175466,5.67194612,2577.8,2577.7,10.94900785]
[1749140175878,5.67194612,2577.8,2577.7,10.224]
[1749140176629,1.24266922,2577.8,2577.7,10.224]
[1749140176858,3.87924448,2577.9,2577.7,10.94904073]
[1749140177056,0.7893,2578.0,2577.8,0.36235564]
[1749140177256,4.42889054,2578.1,2577.9,0.72470484]
[1749140177582,4.42889054,2578.1,2577.7,10.224]
[1749140177583,4.4292769,2577.8,2577.7,15.035]
[1749140177752,4.4292769,2577.8,2577.7,16.882]
[1749140177954,4.4292769,2577.8,2577.7,8.377]
[1749140177955,5.26011723,2577.8,2577.7,8.377]
[1749140178161,15.74725716,2577.8,2577.7,10.224]
[1749140179504,6.02861723,2577.8,2577.7,10.224]
[1749140180954,5.47861723,2577.8,2577.7,10.224]
[1749140181149,4.71011723,2577.8,2577.7,10.224]
[1749140181680,4.71011723,2577.8,2577.7,10.58632248]
[1749140181883,4.71011723,2577.8,2577.7,10.58631908]
[1749140182452,4.71011723,2577.8,2577.7,10.224]
[1749140183888,4.71011723,2577.8,2577.7,10.58632079]
[1749140184076,4.71011723,2577.8,2577.7,8.73932079]
[1749140184276,0.83084033,2577.8,2577.7,10.204]
[1749140184450,4.58021289,2578.2,2577.7,10.204]
[1749140184647,0.701457,2578.2,2577.7,10.204]
[1749140184854,0.5,2578.2,2577.8,3.87920228]
[1749140185053,0.5,2578.2,2577.7,10.204]
[1749140185360,3.87830934,2578.5,2577.7,14.08332111]
[1749140185689,3.87811217,2578.6,2577.8,4.2414693]
[1749140185690,3.87818381,2578.6,2577.8,4.2414693]
[1749140185891,0.20127966,2578.8,2578.0,3.87890086]
[1749140186053,1.66259455,2578.8,2578.1,6.64]
[1749140186249,0.20127966,2578.8,2578.1,6.64]
[1749140186467,3.87815669,2578.6,2578.1,6.64]
[1749140186989,3.87798671,2578.7,2578.1,6.64]
[1749140187152,4.07912508,2578.8,2578.2,0.36212555]
[1749140187348,0.20127966,2578.8,2578.3,2.18812555]
[1749140187549,4.0790547,2578.8,2578.4,0.36212555]
[1749140187751,4.87671342,2578.8,2578.5,6.637]
[1749140187983,0.99893838,2578.8,2578.5,6.637]
[1749140188550,3.87800316,2578.7,2578.5,6.637]
[1749140188753,0.02,2578.9,2578.5,6.637]
[1749140188950,3.8777726,2578.8,2578.5,6.637]
[1749140189389,3.87798988,2578.7,2577.9,3.87905694]
[1749140189558,3.87816372,2578.6,2578.0,8.463]
[1749140189953,0.77559903,2578.6,2578.1,1.826]
[1749140190254,0.77559903,2578.6,2577.7,8.377]
[1749140190255,3.87867504,2578.2,2577.7,8.377]
[1749140190456,3.87883025,2578.1,2577.8,1.826]
[1749140190792,0.7528,2578.3,2577.8,1.826]
[1749140190793,3.87859021,2578.3,2577.8,1.826]
[1749140190988,3.87853679,2578.3,2577.8,1.826]
[1749140191180,5.31353446,2578.3,2577.8,1.826]
[1749140191380,3.87870376,2578.2,2577.8,1.826]
[1749140191571,3.87874077,2578.2,2577.8,1.826]
[1749140192286,3.87889154,2578.1,2577.8,1.826]
[1749140192488,3.87898526,2578.0,2577.7,8.377]
[1749140192689,3.87887331,2578.1,2577.9,8.473]
[1749140192878,3.87875934,2578.2,2577.9,8.473]
[1749140193192,0.9192325,2578.2,2577.9,8.473]
[1749140193391,3.87840817,2578.4,2578.0,0.36159248]
[1749140193567,4.42841613,2578.4,2577.7,12.25640794]
[1749140193773,3.87841613,2578.4,2577.8,8.469]
[1749140193985,0.99420282,2578.7,2577.9,3.87909912]
[1749140194191,0.20140282,2578.7,2577.8,8.469]
[1749140194491,0.20140282,2578.7,2578.1,3.87880656]
[1749140194791,0.20140282,2578.7,2578.2,10.88312379]
[1749140194965,0.7876,2578.9,2578.3,0.36153438]
[1749140194966,0.02,2578.9,2578.3,0.36153438]
[1749140195173,3.89767486,2578.9,2578.4,1.826]
[1749140195367,3.87780549,2578.8,2578.5,0.36158408]
[1749140195574,3.89767812,2578.9,2578.6,8.47]
[1749140195779,3.87792298,2578.7,2578.6,6.644]
[1749140195968,3.87785397,2578.8,2578.6,8.47]
[1749140196858,3.87784035,2578.8,2578.6,8.47]
[1749140197378,3.87792298,2578.7,2578.6,8.47]
[1749140197695,0.92342711,2578.7,2578.6,1.826]
[1749140197899,4.80135009,2578.7,2578.6,1.826]
[1749140199371,0.92342711,2578.7,2578.6,1.826]
[1749140199777,9.71863993,2578.8,2578.6,1.826]
[1749140199778,3.8777857,2578.8,2578.6,1.826]
[1749140199996,3.87792298,2578.7,2578.6,1.826]
[1749140200596,3.87788682,2578.8,2578.6,1.826]
[1749140201296,1.47850774,2578.9,2578.6,1.826]
[1749140201464,5.35621067,2578.9,2578.6,1.826]
[1749140201801,3.87782013,2578.8,2578.6,1.826]
[1749140202804,3.87792298,2578.7,2578.6,1.826]
[1749140203966,10.66217519,2578.8,2578.6,1.826]
[1749140204277,3.87792298,2578.7,2578.6,1.826]
[1749140207269,3.87792298,2578.7,2577.7,8.377]
[1749140207270,3.87863473,2578.3,2577.7,8.377]
[1749140207513,3.87876241,2578.2,2577.8,8.79356541]
[1749140207717,3.87876241,2578.2,2577.9,0.3616976]
[1749140207884,3.8789232,2578.1,2578.0,2.18770652]
[1749140208212,3.8789232,2578.1,2577.7,8.377]
[1749140208213,4.4292769,2577.8,2577.7,8.377]
[1749140208516,14.14791683,2577.8,2577.7,10.203]
[1749140210787,13.59791683,2577.8,2577.7,10.203]
[1749140210987,13.59791683,2577.8,2577.7,8.377]
[1749140211285,15.34562416,2577.8,2577.7,10.203]
[1749140211686,15.34562416,2577.8,2577.7,8.377]
[1749140211925,15.89562416,2577.8,2577.7,8.377]
[1749140212134,0.8044,2577.6,2576.8,8.374]
[1749140212443,3.88002948,2577.3,2576.9,1.826]
[1749140212733,3.88044292,2577.1,2576.9,8.426]
[1749140212913,3.88048117,2577.0,2576.9,1.826]
[1749140213091,3.88048117,2577.0,2576.8,8.374]
[1749140213290,3.88063176,2576.9,2576.8,8.374]
[1749140213485,3.88063176,2576.9,2576.8,10.173]
[1749140213719,3.88063176,2576.9,2576.8,8.374]
[1749140213995,6.25618705,2576.9,2576.8,10.173]
[1749140214747,6.25618705,2576.9,2576.8,8.374]
[1749140214748,7.07428705,2576.9,2576.8,8.374]
[1749140215029,7.07428705,2576.9,2576.8,10.173]
[1749140215204,7.07428705,2576.9,2576.8,8.374]
[1749140215399,7.27560796,2576.9,2576.8,10.173]
[1749140216908,7.27560796,2576.9,2576.8,10.174]
[1749140217540,16.99424789,2576.9,2576.8,10.174]
[1749140218193,4.43093297,2576.7,2576.6,1.8]
[1749140218445,14.1495729,2576.7,2576.6,1.8]
[1749140218748,5.26168359,2576.6,2576.5,1.8]
[1749140219097,5.26168359,2576.6,2576.2,1.8]
[1749140219098,3.88155092,2576.3,2576.2,1.8]
[1749140219335,13.60010981,2576.4,2576.2,1.8]
[1749140219635,13.60010981,2576.4,2575.4,0.15472454]
[1749140219636,3.88198757,2576.0,2575.4,0.15472454]
[1749140219789,3.88198757,2576.0,2574.6,0.51]
[1749140219790,3.88394764,2574.7,2574.6,0.51]
[1749140219994,0.8046,2574.9,2574.1,0.02]
[1749140220214,3.88470204,2574.2,2574.1,0.02]
[1749140220920,0.7728,2574.3,2574.1,0.02]
[1749140221116,3.88470204,2574.2,2574.1,0.02]
[1749140221349,0.7728,2574.3,2573.3,0.01]
[1749140221564,9.71863993,2573.6,2573.4,0.32438898]
[1749140221735,3.88575869,2573.5,2573.4,0.32438898]
[1749140222135,4.43575869,2573.5,2573.4,0.32438898]
[1749140222356,29.0797002,2573.5,2573.4,0.32438898]
[1749140222560,3.88615624,2573.3,2572.6,1.878]
[1749140222736,0.7794,2573.6,2572.8,3.88681099]
[1749140222932,1.3029,2574.0,2573.2,1.878]
[1749140223132,9.71863993,2574.6,2573.2,8.648]
[1749140223358,0.7529,2574.7,2573.3,16.0]
[1749140223539,0.7529,2574.7,2573.9,3.88502156]
[1749140223740,0.7529,2574.7,2574.0,1.878]
[1749140223925,0.7529,2574.7,2574.1,1.878]
[1749140224126,8.60357856,2574.8,2574.2,1.878]
[1749140224127,3.88380213,2574.8,2574.2,1.878]
[1749140224424,0.8079,2575.0,2574.2,1.878]
[1749140224629,1.14894754,2575.3,2574.2,1.878]
[1749140224851,0.99545261,2575.2,2574.2,1.878]
[1749140225064,3.8833648,2575.1,2574.2,1.878]
[1749140225228,4.87865214,2575.2,2574.2,1.878]
[1749140225563,3.88406729,2574.7,2574.3,1.879]
[1749140225748,3.88406729,2574.7,2573.6,8.38]
[1749140225749,0.99545261,2575.2,2574.4,1.879]
[1749140225950,3.88351045,2575.0,2574.5,1.879]
[1749140226263,3.88355731,2575.0,2574.6,1.879]
[1749140226565,0.56463583,2575.1,2574.5,1.879]
[1749140226783,4.44802799,2575.1,2574.5,1.879]
[1749140226930,0.55,2575.0,2574.5,1.879]
[1749140227239,0.55,2574.8,2574.5,1.879]
[1749140227424,5.2090985,2574.6,2574.5,1.879]
[1749140227628,3.88500388,2574.0,2573.9,1.879]
[1749140228029,4.68520388,2574.0,2573.9,1.879]
[1749140228260,4.43567006,2573.6,2573.4,1.879]
[1749140228462,3.88579999,2573.5,2573.1,0.02]
[1749140228660,0.55,2573.4,2573.1,1.899]
[1749140228865,3.88619114,2573.3,2573.1,1.899]
[1749140229060,4.43597556,2573.4,2573.1,1.899]
[1749140229261,3.88621172,2573.2,2573.1,0.02]
[1749140229443,4.6910438,2573.3,2573.1,0.02]
[1749140230065,3.8861438,2573.3,2573.1,0.02]
[1749140230369,20.43621172,2573.2,2573.1,0.02]
[1749140230666,5.23151172,2573.2,2573.1,0.02]
[1749140230851,0.38502748,2573.3,2573.1,0.02]
[1749140231028,3.88576438,2573.5,2573.1,0.02]
[1749140231234,3.88621172,2573.2,2573.1,1.899]
[1749140231554,3.88614048,2573.3,2573.1,1.899]
[1749140231758,3.88621172,2573.2,2573.1,0.02]
[1749140232063,3.88621172,2573.2,2573.1,1.899]
[1749140232265,3.88621172,2573.2,2573.1,0.02]
[1749140232445,3.88613727,2573.3,2573.1,1.899]
[1749140232641,0.71632152,2573.4,2573.1,1.899]
[1749140232846,0.32302515,2573.4,2573.1,1.899]
[1749140233041,0.32302515,2573.4,2573.2,1.879]
[1749140233254,0.39019462,2573.7,2573.2,1.879]
[1749140233468,0.7593,2574.0,2573.2,1.879]
[1749140233686,3.88492617,2574.1,2573.2,3.88617833]
[1749140233887,0.7577,2574.8,2573.5,8.60357856]
[1749140234035,0.32302515,2574.7,2573.8,16.0]
[1749140234232,0.32302515,2574.7,2574.0,3.88500388]
[1749140234585,0.8317,2575.5,2574.6,3.8840985]
[1749140234889,3.88276341,2575.5,2574.7,1.88]
[1749140235091,4.27142173,2575.8,2574.8,10.6767821]
[1749140235250,3.88243972,2575.7,2574.9,1.88]
[1749140235588,3.88334433,2575.1,2575.0,1.88]
[1749140236144,4.81405991,2575.1,2575.0,1.88]
[1749140237380,0.93071558,2575.1,2575.0,1.88]
[1749140237541,3.88334433,2575.1,2575.0,1.88]
[1749140237943,1.40930177,2575.1,2573.9,8.387]
[1749140238168,4.43361095,2575.0,2574.1,3.88484831]
[1749140238458,3.88387278,2574.8,2574.0,5.76498657]
[1749140238981,0.55,2575.0,2574.0,5.76497085]
[1749140239144,0.55,2575.0,2574.3,3.88450843]
[1749140239351,1.50231004,2575.0,2574.0,1.88]
[1749140239585,0.55,2575.0,2574.0,1.88]
[1749140239845,3.8848443,2574.2,2574.0,1.88]
[1749140240046,3.88485295,2574.1,2574.0,1.88]
[1749140241273,4.43500388,2574.0,2573.3,8.387]
[1749140241582,4.43530577,2573.8,2573.7,1.88]
[1749140242283,0.55,2573.9,2573.6,1.88]
[1749140242482,3.88544842,2573.8,2573.6,1.88]
[1749140242724,3.88541432,2573.8,2573.6,1.88]
[1749140243051,3.88532612,2573.8,2573.6,1.88]
[1749140243251,3.88545673,2573.7,2573.6,1.88]
[1749140243464,3.88532409,2573.8,2573.6,1.88]
[1749140243791,4.66900732,2574.1,2573.6,1.88]
[1749140243947,4.84368814,2574.1,2573.6,1.88]
[1749140244151,3.88504226,2574.0,2573.6,1.88]
[1749140244361,0.55,2574.0,2573.5,1.88]
[1749140244575,3.8856077,2573.6,2573.5,1.88]
[1749140244790,3.88539089,2573.8,2573.5,1.88]
[1749140244967,3.8856077,2573.6,2573.1,0.02]
[1749140245291,0.44353909,2573.8,2573.2,1.88]
[1749140245595,3.88508202,2574.0,2573.2,5.76620967]
[1749140245904,4.84375614,2574.1,2573.3,3.88597976]
[1749140246047,0.95876864,2574.1,2573.2,1.88]
[1749140246248,3.88530577,2573.8,2573.3,0.35924178]
[1749140246498,3.88539209,2573.8,2573.2,1.88]
[1749140246700,3.88539209,2573.8,2573.1,0.02]
[1749140246701,3.88621172,2573.2,2573.1,0.02]
[1749140246900,3.88621172,2573.2,2572.5,1.88]
[1749140246901,3.88711809,2572.6,2572.5,1.88]
[1749140247310,3.88772257,2572.2,2571.7,1.88]
[1749140247817,3.88923459,2571.2,2570.2,4.28197182]
[1749140248018,3.88923459,2571.2,2570.4,1.915]
[1749140248206,3.88923459,2571.2,2570.1,10.02]
[1749140248207,10.68423459,2571.2,2570.1,0.02]
[1749140248375,0.7509,2570.7,2570.1,0.02]
[1749140248576,4.6416478,2570.2,2570.1,0.02]
[1749140248789,4.6416478,2570.2,2569.1,0.02]
[1749140248790,3.89226218,2569.2,2569.1,0.02]
[1749140248990,4.67906218,2569.2,2569.1,0.02]
[1749140249279,4.67915529,2569.2,2567.5,0.2098]
[1749140249512,3.89308477,2568.7,2568.2,2.082]
[1749140249840,3.89377774,2568.2,2567.5,0.2098]
[1749140250137,0.2,2568.2,2568.1,2.181]
[1749140250294,0.2,2568.2,2568.1,8.411]
[1749140250624,0.7868,2569.2,2568.1,17.799]
[1749140250838,1.06249899,2569.8,2568.2,0.57733677]
[1749140250839,0.8177,2569.7,2568.2,0.57733677]
[1749140251011,0.37993235,2569.2,2568.3,0.93815856]
[1749140251216,3.89201632,2569.4,2568.4,4.61510607]
[1749140251375,0.8177,2569.7,2568.1,8.411]
[1749140251574,0.8177,2569.7,2568.2,2.87813794]
[1749140251575,1.21030583,2569.7,2568.2,2.87813794]
[1749140251776,1.21030583,2569.7,2568.1,0.02]
[1749140251777,30.8286,2569.2,2568.1,0.02]
[1749140252081,16.0,2569.8,2567.1,0.02]
[1749140252082,0.55,2568.2,2567.1,0.02]
[1749140252325,3.8963569,2566.5,2566.4,0.15472454]
[1749140252881,0.39571589,2567.0,2566.4,0.15472454]
[1749140253117,3.8963569,2566.5,2566.4,0.15472454]
[1749140253290,0.8188,2567.2,2566.4,2.42572454]
[1749140253291,0.39816506,2567.0,2566.4,2.42572454]
[1749140253595,3.89392936,2568.1,2566.5,19.89634765]
[1749140253920,33.89377774,2568.2,2566.6,0.35798858]
[1749140254086,30.0,2568.1,2566.4,0.39729699]
[1749140254289,0.55,2568.0,2566.7,2.271]
[1749140254478,0.55,2567.7,2566.7,6.16702026]
[1749140254675,30.0,2568.0,2566.8,2.272]
[1749140254912,3.89438429,2567.8,2566.4,0.15472454]
[1749140255111,0.7898,2567.5,2566.4,0.15472454]
[1749140255279,0.55,2567.4,2566.4,0.38452454]
[1749140255490,0.8106,2568.0,2566.5,18.272]
[1749140255702,4.70469588,2568.0,2567.0,3.89555575]
[1749140255906,1.67044738,2568.0,2567.2,3.89528335]
[1749140256113,1.67044738,2568.0,2567.3,14.56713961]
[1749140256114,0.8106,2568.0,2567.3,14.56713961]
[1749140256314,0.58950031,2568.1,2567.3,8.4]
[1749140256480,3.89499104,2567.4,2567.3,8.4]
[1749140256679,0.55,2567.9,2567.3,10.753]
[1749140256915,4.4808103,2568.1,2567.3,10.753]
[1749140257116,0.44808103,2568.0,2567.3,10.753]
[1749140257518,30.0,2568.0,2567.3,8.4]
[1749140257781,4.44489436,2567.5,2567.4,2.354]
[1749140257903,4.44590151,2566.8,2566.7,2.354]
[1749140258108,0.55,2566.8,2566.4,0.15472454]
[1749140258301,16.8155,2567.5,2566.5,2.354]
[1749140258505,1.36633482,2568.1,2566.5,2.354]
[1749140258693,3.89420923,2568.0,2567.0,3.89550614]
[1749140258929,1.36633482,2568.1,2567.2,3.89514639]
[1749140259226,0.58673482,2568.1,2567.3,2.354]
[1749140259401,0.38545581,2568.1,2567.3,2.5894]
[1749140259727,0.20123813,2568.7,2567.5,16.0]
[1749140259930,0.20123813,2568.7,2567.8,3.89436552]
[1749140260291,0.20123813,2568.7,2567.6,8.403]
[1749140260510,0.58543123,2568.7,2567.9,3.8942164]
[1749140260729,0.58543123,2568.7,2568.0,2.354]
[1749140261092,0.02,2568.9,2568.0,9.859]
[1749140261412,0.02,2568.9,2568.8,3.89286826]
[1749140261615,0.02,2568.9,2568.8,6.24686826]
[1749140261929,3.91126019,2569.9,2568.8,6.24686826]
[1749140261930,0.20125758,2569.6,2569.5,3.89180774]
[1749140262100,0.02,2569.9,2569.5,3.89180774]
[1749140262101,0.02,2569.9,2569.8,3.89135341]
[1749140262310,0.02,2569.9,2569.8,0.2298]
[1749140262618,0.02,2569.9,2569.8,2.5838]
[1749140262790,0.02,2569.9,2569.8,6.47515341]
[1749140262991,0.02,2569.9,2569.8,22.47515341]
[1749140263622,0.02,2569.9,2569.8,29.99015341]
[1749140264627,0.02,2569.9,2569.8,2.354]
[1749140264836,0.02,2569.9,2568.0,3.89393321]
[1749140264837,3.89165628,2569.6,2568.0,3.89393321]
[1749140265135,16.8002,2569.8,2568.2,0.2298]
[1749140265354,2.68439143,2569.7,2568.3,2.354]
[1749140265560,3.89160652,2569.7,2568.7,3.89291554]
[1749140265853,3.89267253,2569.0,2568.8,2.354]
[1749140266015,3.89215476,2569.3,2568.8,2.354]
[1749140266222,3.89215476,2569.3,2568.9,2.354]
[1749140266421,3.8918557,2569.5,2568.9,2.354]
[1749140266626,4.44163974,2569.7,2568.9,2.354]
[1749140266627,0.38918116,2569.4,2568.9,2.354]
[1749140266853,3.89197119,2569.4,2568.9,10.757]
[1749140267152,3.89180375,2569.6,2568.8,3.89286684]
[1749140267452,3.89180375,2569.6,2566.5,1.92687029]
[1749140267453,0.55,2568.5,2567.3,2.354]
[1749140267751,0.811,2568.6,2567.5,3.89480966]
[1749140267752,3.89356787,2568.4,2567.5,3.89480966]
[1749140268056,0.85977791,2568.4,2567.6,0.2298]
[1749140268357,0.55,2569.0,2567.6,0.2298]
[1749140268550,3.89342023,2568.5,2567.7,3.89449319]
[1749140268752,3.89321945,2568.6,2567.8,3.89436774]
[1749140268932,3.89321945,2568.6,2568.0,3.8939648]
[1749140268933,0.7786107,2568.6,2568.0,3.8939648]
[1749140269140,0.8301,2569.1,2567.1,0.02]
[1749140269141,0.7693,2568.3,2567.1,0.02]
[1749140269356,1.1598481,2568.3,2567.1,0.02]
[1749140269532,0.55,2568.0,2567.1,0.02]
[1749140269731,0.55,2567.6,2567.1,0.02]
[1749140269932,0.4444536,2567.5,2567.2,2.44]
[1749140270234,3.89514275,2567.3,2567.2,2.44]
[1749140271325,30.0,2568.0,2567.2,2.44]
[1749140271532,3.89514275,2567.3,2567.2,2.44]
[1749140271838,3.89460245,2567.7,2567.2,10.844]
[1749140272060,3.89377774,2568.2,2567.2,10.844]
[1749140272260,3.89377774,2568.2,2567.3,0.2298]
[1749140272457,0.3905481,2568.3,2567.4,2.44]
[1749140272458,3.89434738,2567.9,2567.4,2.44]
[1749140272660,3.89434738,2567.9,2567.3,7.8608]
[1749140272661,3.89468764,2567.6,2567.5,2.44]
[1749140272973,4.2841564,2567.6,2567.5,2.44]
[1749140273271,3.89499104,2567.4,2567.3,2.44]
[1749140273575,0.8287,2567.8,2567.3,2.44]
[1749140273727,3.89493466,2567.5,2567.3,2.44]
[1749140273932,0.8287,2567.8,2567.3,2.44]
[1749140274179,3.89472122,2567.6,2567.3,2.44]
[1749140274487,0.84358863,2567.6,2567.2,8.404]
[1749140274651,0.8287,2567.8,2567.2,8.404]
[1749140274847,0.55,2567.8,2567.3,2.44]
[1749140275038,3.89460402,2567.7,2567.3,2.44]
[1749140275242,0.55,2568.2,2567.3,2.44]
[1749140275455,3.89431494,2567.9,2567.3,2.44]
[1749140275741,3.89431494,2567.9,2567.2,8.404]
[1749140275742,3.89483933,2567.5,2567.4,2.44]
[1749140275951,3.89529448,2567.2,2567.1,0.02]
[1749140276657,4.44529448,2567.2,2567.1,0.02]
[1749140276858,4.8099082,2567.2,2567.1,0.02]
[1749140277184,3.89468764,2567.6,2567.1,2.46]
[1749140277338,3.89468764,2567.6,2567.1,0.02]
[1749140277699,3.89442131,2567.8,2567.2,2.44]
[1749140277892,4.28317544,2568.3,2567.3,0.35785166]
[1749140278096,3.89439873,2567.8,2567.4,0.71855733]
[1749140278238,3.89456951,2567.7,2567.1,0.02]
[1749140278437,3.89360126,2568.4,2567.5,2.44]
[1749140278636,3.89443965,2567.8,2567.6,0.71954158]
[1749140278870,3.89443965,2567.8,2567.1,0.02]
[1749140278871,0.38944397,2567.8,2567.7,0.71954158]
[1749140279087,3.89438429,2567.8,2567.7,0.35981874]
[1749140279297,0.55,2568.3,2567.7,0.35980636]
[1749140279588,0.55,2567.8,2567.3,2.441]
[1749140279790,3.89499104,2567.4,2567.1,0.02]
[1749140279969,3.89483933,2567.5,2567.2,3.16063592]
[1749140280359,4.83841879,2568.3,2567.3,0.71963592]
[1749140280505,5.19609104,2567.4,2567.1,0.02]
[1749140280715,4.44529448,2567.2,2567.1,0.02]
[1749140281098,34.44529448,2567.2,2567.1,0.02]
[1749140281267,50.80560856,2567.2,2567.1,0.02]
[1749140281468,4.4463569,2566.5,2566.1,2.547]
[1749140281687,3.84223772,2567.2,2566.2,4.14649569]
[1749140281906,3.89509464,2567.4,2566.5,0.72010804]
[1749140282064,0.38509901,2567.8,2566.6,0.93615495]
[1749140282267,30.0,2567.7,2566.7,2.88711623]
[1749140282468,3.89499104,2567.4,2566.8,0.36011623]
[1749140282777,0.55,2567.2,2566.4,0.15472454]
[1749140283088,5.2356569,2566.5,2566.4,0.15472454]
[1749140283407,3.8963569,2566.5,2566.4,0.15472454]
[1749140283581,4.4463569,2566.5,2566.4,0.15472454]
[1749140283777,3.8963569,2566.5,2566.4,0.15472454]
[1749140283962,5.2647736,2566.5,2566.4,0.15472454]
[1749140284179,5.2147736,2566.5,2566.4,0.15472454]
[1749140285502,5.41634035,2566.5,2566.4,0.15472454]
[1749140286304,0.8044,2565.5,2565.1,0.02]
[1749140286506,3.89833151,2565.2,2565.1,0.02]
[1749140286706,5.06778537,2565.2,2565.1,0.02]
[1749140287097,3.89833151,2565.2,2565.1,0.02]
[1749140287294,3.89714048,2566.0,2565.1,0.02]
[1749140287295,4.66684044,2566.4,2565.1,0.74000605]
[1749140287508,4.66684044,2566.4,2565.2,9.13045766]
[1749140287509,0.55,2566.3,2565.2,9.13045766]
[1749140287709,3.89718005,2566.0,2565.3,0.71882606]
[1749140288031,3.89759656,2565.7,2565.4,2.97441742]
[1749140288226,3.89739134,2565.9,2565.4,2.615]
[1749140288412,3.89755032,2565.8,2565.5,2.615]
[1749140288723,4.51548862,2566.0,2565.5,2.615]
[1749140288929,3.89699455,2566.1,2565.5,2.615]
[1749140289129,3.89699455,2566.1,2565.6,2.97438949]
[1749140289130,3.89711157,2566.1,2565.6,2.97438949]
[1749140289291,0.39160038,2566.7,2565.7,0.35933827]
[1749140289492,0.39160038,2566.7,2565.6,2.615]
[1749140289493,3.89757181,2565.7,2565.6,2.615]
[1749140289793,0.55,2565.8,2565.3,2.615]
[1749140290034,4.44833151,2565.2,2565.1,0.02]
[1749140290507,3.89810623,2565.4,2565.1,0.02]
[1749140290709,3.89694904,2566.2,2565.2,11.028]
[1749140290939,0.20156675,2566.5,2565.4,0.4045]
[1749140291255,0.20156675,2566.5,2565.2,19.007]
[1749140291256,1.3063,2567.3,2565.7,0.4045]
[1749140291542,0.32307016,2567.2,2566.8,0.4045]
[1749140291845,0.32307016,2567.2,2566.9,23.62427412]
[1749140292029,0.32307016,2567.2,2567.0,0.35930213]
[1749140292238,0.32307016,2567.2,2567.1,2.615]
[1749140292520,4.21836464,2567.2,2567.1,2.615]
[1749140292836,5.02972751,2567.2,2567.1,2.615]
[1749140293032,4.21836464,2567.2,2567.1,2.615]
[1749140293236,3.89559797,2567.0,2566.9,8.413]
[1749140294493,3.89591759,2566.8,2566.6,2.615]
[1749140294693,4.44591759,2566.8,2566.7,0.36158246]
[1749140294916,5.28006915,2566.8,2566.7,0.36158246]
[1749140295109,3.89654636,2566.4,2566.1,2.615]
[1749140295321,3.89666056,2566.3,2566.2,0.36171249]
[1749140295561,3.89603345,2566.8,2566.2,0.36171249]
[1749140295737,0.55,2567.3,2566.3,0.36171458]
[1749140295943,3.89597715,2566.8,2566.4,0.36168955]
[1749140296253,0.32307016,2566.7,2566.5,0.36168955]
[1749140296469,4.21914021,2566.7,2566.6,0.36178669]
[1749140296988,0.32307016,2566.7,2566.6,0.36178753]
[1749140297289,0.32307016,2566.7,2566.2,0.4045]
[1749140297497,3.8963804,2566.5,2566.3,0.36178732]
[1749140297656,0.32307016,2566.7,2566.4,0.36178732]
[1749140297855,4.70847993,2567.5,2566.5,0.36177991]
[1749140298055,3.89555594,2567.1,2566.6,0.36177991]
[1749140298279,3.89483933,2567.5,2566.7,0.36172026]
[1749140298465,3.89547244,2567.1,2566.8,0.36172026]
[1749140298662,3.89559797,2567.0,2566.9,2.615]
[1749140298873,3.89559797,2567.0,2566.9,2.97683861]
[1749140299074,3.89559797,2567.0,2566.9,2.97684721]
[1749140299281,3.89559797,2567.0,2566.9,2.97684807]
[1749140299456,3.89559797,2567.0,2566.9,2.97684924]
[1749140299655,3.89559797,2567.0,2566.9,2.9768488]
[1749140300489,3.89559797,2567.0,2566.9,2.97693915]
[1749140300791,4.67485301,2567.0,2566.9,2.97693959]
[1749140300989,3.89522766,2567.3,2566.9,2.97693959]
[1749140301290,3.89522766,2567.3,2567.0,2.615]
[1749140301291,3.89521782,2567.3,2567.0,2.615]
[1749140301457,3.89506212,2567.4,2567.1,2.97689186]
[1749140301657,3.89514275,2567.3,2567.1,2.615]
[1749140301882,3.89441282,2567.8,2567.2,0.36187878]
[1749140302080,3.89505212,2567.4,2567.1,2.615]
[1749140302298,3.89514275,2567.3,2567.2,0.36188853]
[1749140302468,3.89529448,2567.2,2567.1,2.615]
[1749140302670,3.89666056,2566.3,2566.2,0.4045]
[1749140302994,3.89590151,2566.8,2566.2,3.0195]
[1749140303192,3.89666056,2566.3,2566.2,2.615]
[1749140303510,3.8974199,2565.8,2565.7,0.005]
[1749140303653,3.89833151,2565.2,2565.1,0.02]
[1749140304000,4.44833151,2565.2,2564.7,2.615]
[1749140304200,3.89893948,2564.8,2564.7,2.615]
[1749140304492,3.89893948,2564.8,2564.7,2.97759495]
[1749140304814,3.8998518,2564.2,2564.1,0.02]
[1749140305017,33.8998518,2564.2,2564.1,0.02]
[1749140305177,0.55,2564.4,2564.1,0.02]
[1749140305502,0.20123163,2564.7,2564.1,0.02]
[1749140305673,3.89924354,2564.6,2564.2,3.06646401]
[1749140306014,3.8998518,2564.2,2564.1,0.02]
[1749140306304,5.2175518,2564.2,2564.1,0.02]
[1749140306998,51.2175518,2564.2,2564.1,0.02]
[1749140307187,51.57806616,2564.2,2564.1,0.02]
[1749140307352,3.90137328,2563.2,2563.1,0.02]
[1749140307557,3.90123256,2563.3,2563.1,0.02]
[1749140307790,3.90091878,2563.5,2563.1,0.02]
[1749140307995,0.55,2564.1,2563.1,0.02]
[1749140308200,4.66761919,2564.2,2563.1,0.02]
[1749140308201,49.90137328,2563.2,2563.1,0.02]
[1749140308408,30.0,2561.1,2560.0,0.55967962]
[1749140308590,14.63670265,2561.0,2560.1,0.36060088]
[1749140308763,14.63670265,2561.0,2559.6,1.00800308]
[1749140308764,40.0,2560.6,2559.6,1.00800308]
[1749140309095,4.45670781,2559.7,2559.6,1.00800308]
[1749140309258,34.45670781,2559.7,2559.6,0.86580981]
[1749140309459,3.9054872,2560.5,2559.0,250.0]
[1749140309724,3.90594484,2560.2,2559.0,250.0]